[Event "Late-Titled-Tuesday-Blitz-February-20-2024"]
[Site "Chess.com"]
[Date "2024.02.20"]
[Round "4"]
[White "Zq1"]
[Black "MAGMAchess02"]
[Result "0-1"]
[WhiteElo "2481"]
[BlackElo "2252"]
[TimeControl "180+1"]
[EndTime "14:38:49 PST"]
[Termination "MAGMAchess02 won on time"]

1. d4 {[%clk 0:03:00.9]} 1... d5 {[%clk 0:02:58.4]} 2. c4 {[%clk 0:03:00.8]}
2... e6 {[%clk 0:02:57.7]} 3. Nc3 {[%clk 0:03:00.2]} 3... c6 {[%clk 0:02:49.2]}
4. e4 {[%clk 0:02:58.1]} 4... dxe4 {[%clk 0:02:48.4]} 5. Nxe4 {[%clk 0:02:58.1]}
5... Bb4+ {[%clk 0:02:48.9]} 6. Nc3 {[%clk 0:02:57.3]} 6... e5 {[%clk 0:02:45]}
7. a3 {[%clk 0:02:50.6]} 7... Bxc3+ {[%clk 0:02:34.6]} 8. bxc3 {[%clk
0:02:49.8]} 8... Nf6 {[%clk 0:02:35.2]} 9. Nf3 {[%clk 0:02:47.9]} 9... exd4
{[%clk 0:02:26.1]} 10. cxd4 {[%clk 0:02:47.1]} 10... O-O {[%clk 0:02:24.1]} 11.
Be2 {[%clk 0:02:47.1]} 11... Re8 {[%clk 0:02:16.3]} 12. O-O {[%clk 0:02:46.7]}
12... Ne4 {[%clk 0:02:08.7]} 13. Bb2 {[%clk 0:02:38.6]} 13... Nd7 {[%clk
0:02:05.1]} 14. Bd3 {[%clk 0:02:29.7]} 14... Ng5 {[%clk 0:02:03.2]} 15. h3
{[%clk 0:02:04.6]} 15... Nxf3+ {[%clk 0:02:00.8]} 16. Qxf3 {[%clk 0:02:03.7]}
16... Nf6 {[%clk 0:01:57]} 17. Rfe1 {[%clk 0:02:02.4]} 17... Be6 {[%clk
0:01:56.4]} 18. Re2 {[%clk 0:01:56]} 18... Qa5 {[%clk 0:01:47.6]} 19. Rae1
{[%clk 0:01:53.7]} 19... Bd7 {[%clk 0:01:36.7]} 20. Rxe8+ {[%clk 0:01:47.6]}
20... Rxe8 {[%clk 0:01:37.6]} 21. Rxe8+ {[%clk 0:01:35]} 21... Bxe8 {[%clk
0:01:38.5]} 22. d5 {[%clk 0:01:30.3]} 22... cxd5 {[%clk 0:01:35.4]} 23. Bxf6
{[%clk 0:01:27.5]} 23... gxf6 {[%clk 0:01:26]} 24. cxd5 {[%clk 0:01:24.6]} 24...
Qe1+ {[%clk 0:01:22.3]} 25. Kh2 {[%clk 0:01:23.3]} 25... Qe5+ {[%clk 0:01:22.8]}
26. g3 {[%clk 0:01:19.6]} 26... Bd7 {[%clk 0:01:05.1]} 27. Bc2 {[%clk
0:01:10.9]} 27... b5 {[%clk 0:00:57.3]} 28. Qd3 {[%clk 0:01:07.7]} 28... f5
{[%clk 0:00:51.7]} 29. d6 {[%clk 0:00:56.2]} 29... a5 {[%clk 0:00:39]} 30. Qd2
{[%clk 0:00:55.7]} 30... f4 {[%clk 0:00:27.5]} 31. gxf4 {[%clk 0:00:46.5]} 31...
Qc5 {[%clk 0:00:26.9]} 32. Kg3 {[%clk 0:00:17.7]} 32... Qxa3+ {[%clk 0:00:26.4]}
33. f3 {[%clk 0:00:16.6]} 33... Qc5 {[%clk 0:00:18.8]} 34. Qd3 {[%clk
0:00:11.5]} 34... Qh5 {[%clk 0:00:07]} 35. h4 {[%clk 0:00:10.1]} 35... Qg6+
{[%clk 0:00:06.7]} 36. Kf2 {[%clk 0:00:05.2]} 36... Qxd3 {[%clk 0:00:06]} 37.
Bxd3 {[%clk 0:00:05.4]} 37... b4 {[%clk 0:00:05.8]} 38. Ke3 {[%clk 0:00:03.5]}
38... Kg7 {[%clk 0:00:05.5]} 39. Kd4 {[%clk 0:00:01.3]} 39... Kf6 {[%clk
0:00:05.1]} 0-1

[Event "Late-Titled-Tuesday-Blitz-February-20-2024"]
[Site "Chess.com"]
[Date "2024.02.20"]
[Round "4"]
[White "Fonsofan"]
[Black "Bryanl106"]
[Result "1-0"]
[WhiteElo "2683"]
[BlackElo "2522"]
[TimeControl "180+1"]
[EndTime "14:38:50 PST"]
[Termination "Fonsofan won by resignation"]

1. e4 {[%clk 0:02:34.3]} 1... e5 {[%clk 0:03:00.1]} 2. Nc3 {[%clk 0:02:33]} 2...
Nf6 {[%clk 0:02:57.4]} 3. Nf3 {[%clk 0:02:32.8]} 3... Nc6 {[%clk 0:02:56.7]} 4.
h3 {[%clk 0:02:33]} 4... d5 {[%clk 0:02:56.4]} 5. exd5 {[%clk 0:02:33.3]} 5...
Nxd5 {[%clk 0:02:57.2]} 6. Bb5 {[%clk 0:02:33.6]} 6... Nxc3 {[%clk 0:02:56.4]}
7. bxc3 {[%clk 0:02:34.5]} 7... Bd6 {[%clk 0:02:56.4]} 8. O-O {[%clk 0:02:34.2]}
8... O-O {[%clk 0:02:56.5]} 9. d4 {[%clk 0:02:34.9]} 9... exd4 {[%clk
0:02:55.2]} 10. cxd4 {[%clk 0:02:35.8]} 10... h6 {[%clk 0:02:54.2]} 11. c4
{[%clk 0:02:36.1]} 11... Qf6 {[%clk 0:02:52.3]} 12. Be3 {[%clk 0:02:33]} 12...
Bf5 {[%clk 0:02:49.2]} 13. c5 {[%clk 0:02:30.1]} 13... Be7 {[%clk 0:02:47.1]}
14. d5 {[%clk 0:02:03]} 14... Ne5 {[%clk 0:02:25]} 15. Nxe5 {[%clk 0:02:00.3]}
15... Qxe5 {[%clk 0:02:25.9]} 16. Re1 {[%clk 0:02:00.5]} 16... Bf6 {[%clk
0:02:24.4]} 17. Rc1 {[%clk 0:01:44.2]} 17... Qb2 {[%clk 0:02:23.5]} 18. Bc4
{[%clk 0:01:40.7]} 18... Rad8 {[%clk 0:02:20.9]} 19. Re2 {[%clk 0:01:33.6]}
19... Qa3 {[%clk 0:02:16.8]} 20. Qb3 {[%clk 0:01:33.5]} 20... Qxb3 {[%clk
0:02:15.4]} 21. axb3 {[%clk 0:01:34.4]} 21... Rfe8 {[%clk 0:02:06.4]} 22. Rd1
{[%clk 0:01:25.3]} 22... b6 {[%clk 0:02:01.1]} 23. b4 {[%clk 0:01:16.8]} 23...
Re4 {[%clk 0:02:00]} 24. Rc1 {[%clk 0:01:07.1]} 24... Rxc4 {[%clk 0:01:58.4]}
25. Rxc4 {[%clk 0:01:06.4]} 25... Bd3 {[%clk 0:01:57.8]} 26. Rec2 {[%clk
0:00:32.4]} 26... Bxc2 {[%clk 0:01:53.8]} 27. Rxc2 {[%clk 0:00:33.3]} 27... Rxd5
{[%clk 0:01:54]} 28. Ra2 {[%clk 0:00:31.1]} 28... a5 {[%clk 0:01:44.5]} 29. bxa5
{[%clk 0:00:26.4]} 29... bxa5 {[%clk 0:01:28.9]} 30. Rxa5 {[%clk 0:00:27.3]}
30... Be5 {[%clk 0:01:20.9]} 31. g3 {[%clk 0:00:26.8]} 31... Bc3 {[%clk
0:01:12]} 32. Ra7 {[%clk 0:00:24.4]} 32... Rd7 {[%clk 0:01:07.3]} 33. c6 {[%clk
0:00:21.5]} 33... Re7 {[%clk 0:01:01.2]} 34. Bc5 {[%clk 0:00:20.3]} 34... Re1+
{[%clk 0:00:59.5]} 35. Kg2 {[%clk 0:00:20.3]} 35... Be5 {[%clk 0:01:00.4]} 36.
f4 {[%clk 0:00:11.4]} 36... Rc1 {[%clk 0:00:50.1]} 37. Be7 {[%clk 0:00:11.8]}
37... Rc2+ {[%clk 0:00:36.1]} 38. Kf3 {[%clk 0:00:10.9]} 38... Bd4 {[%clk
0:00:35.8]} 39. Rxc7 {[%clk 0:00:11.1]} 39... f5 {[%clk 0:00:36.2]} 40. g4
{[%clk 0:00:11.2]} 40... Rc3+ {[%clk 0:00:32.9]} 41. Kg2 {[%clk 0:00:10.6]}
41... Rc2+ {[%clk 0:00:32.4]} 42. Kf3 {[%clk 0:00:09.3]} 42... Rc3+ {[%clk
0:00:29.2]} 43. Ke2 {[%clk 0:00:09.9]} 43... Re3+ {[%clk 0:00:29.6]} 44. Kd2
{[%clk 0:00:10]} 44... Bb6 {[%clk 0:00:25.4]} 45. Rc8+ {[%clk 0:00:09.8]} 45...
Kh7 {[%clk 0:00:24.5]} 46. Bd6 {[%clk 0:00:08.1]} 46... Re6 {[%clk 0:00:22.7]}
47. Be5 {[%clk 0:00:07.8]} 47... fxg4 {[%clk 0:00:21]} 48. hxg4 {[%clk
0:00:08.7]} 48... g5 {[%clk 0:00:20.5]} 49. Rh8+ {[%clk 0:00:07.6]} 1-0

[Event "Late-Titled-Tuesday-Blitz-February-20-2024"]
[Site "Chess.com"]
[Date "2024.02.20"]
[Round "4"]
[White "cthulhuuu"]
[Black "LUISMIGUELOV"]
[Result "1-0"]
[WhiteElo "2421"]
[BlackElo "2175"]
[TimeControl "180+1"]
[EndTime "14:38:52 PST"]
[Termination "cthulhuuu won on time"]

1. e4 {[%clk 0:03:00.9]} 1... c6 {[%clk 0:02:59.1]} 2. d3 {[%clk 0:03:00.5]}
2... d5 {[%clk 0:02:57.9]} 3. Nd2 {[%clk 0:03:01]} 3... dxe4 {[%clk 0:02:56.1]}
4. dxe4 {[%clk 0:03:01.9]} 4... e5 {[%clk 0:02:54.4]} 5. Ngf3 {[%clk 0:03:02.3]}
5... Bg4 {[%clk 0:02:52.9]} 6. Bc4 {[%clk 0:03:00.4]} 6... Nd7 {[%clk
0:02:46.8]} 7. c3 {[%clk 0:02:56.4]} 7... Ngf6 {[%clk 0:02:43.8]} 8. Qb3 {[%clk
0:02:54.2]} 8... Bh5 {[%clk 0:02:23.2]} 9. Qxb7 {[%clk 0:02:52.4]} 9... Bc5
{[%clk 0:02:09.9]} 10. Qxc6 {[%clk 0:02:48.7]} 10... Rc8 {[%clk 0:02:07.8]} 11.
Qa4 {[%clk 0:02:43.9]} 11... O-O {[%clk 0:02:05.3]} 12. O-O {[%clk 0:02:44.1]}
12... Bxf3 {[%clk 0:01:58]} 13. Nxf3 {[%clk 0:02:41.7]} 13... Nb6 {[%clk
0:01:57.8]} 14. Bxf7+ {[%clk 0:02:12.1]} 14... Rxf7 {[%clk 0:01:55]} 15. Qb3
{[%clk 0:02:11.4]} 15... Kf8 {[%clk 0:01:30.1]} 16. Ng5 {[%clk 0:02:02.2]} 16...
Re7 {[%clk 0:01:12.6]} 17. Ne6+ {[%clk 0:02:00.8]} 17... Rxe6 {[%clk 0:01:11.7]}
18. Qxe6 {[%clk 0:02:01.7]} 18... Qe7 {[%clk 0:00:54.8]} 19. Qf5 {[%clk
0:02:01.7]} 19... g6 {[%clk 0:00:49.7]} 20. Qf3 {[%clk 0:01:55.2]} 20... Kg7
{[%clk 0:00:45.1]} 21. Bg5 {[%clk 0:01:28.2]} 21... h6 {[%clk 0:00:40.5]} 22.
Be3 {[%clk 0:01:23.4]} 22... Rf8 {[%clk 0:00:34.9]} 23. Qh3 {[%clk 0:01:10.9]}
23... h5 {[%clk 0:00:21.3]} 24. Bg5 {[%clk 0:01:02]} 24... Qd7 {[%clk
0:00:17.4]} 25. Bxf6+ {[%clk 0:00:45.9]} 25... Rxf6 {[%clk 0:00:15.8]} 26. Qxd7+
{[%clk 0:00:45.2]} 26... Nxd7 {[%clk 0:00:15]} 27. Rad1 {[%clk 0:00:44.2]} 27...
Nb6 {[%clk 0:00:14.7]} 28. b4 {[%clk 0:00:43.7]} 28... Bf8 {[%clk 0:00:12.3]}
29. f3 {[%clk 0:00:41.9]} 29... Rf7 {[%clk 0:00:11.7]} 30. Rd3 {[%clk
0:00:34.7]} 30... Nc4 {[%clk 0:00:11.1]} 31. Kf2 {[%clk 0:00:17.7]} 31... a5
{[%clk 0:00:10.8]} 32. b5 {[%clk 0:00:14.9]} 32... a4 {[%clk 0:00:10]} 33. Ke2
{[%clk 0:00:14.2]} 33... Bc5 {[%clk 0:00:08.7]} 34. Rd5 {[%clk 0:00:12.8]} 34...
Bb6 {[%clk 0:00:07.5]} 35. Rb1 {[%clk 0:00:13]} 35... a3 {[%clk 0:00:06.5]} 36.
Rb4 {[%clk 0:00:12.9]} 36... Nb2 {[%clk 0:00:05.7]} 37. c4 {[%clk 0:00:08.2]}
37... Rc7 {[%clk 0:00:03.9]} 38. Rxe5 {[%clk 0:00:05]} 38... Nxc4 {[%clk
0:00:01.1]} 39. Re6 {[%clk 0:00:04.9]} 1-0

[Event "Late-Titled-Tuesday-Blitz-February-20-2024"]
[Site "Chess.com"]
[Date "2024.02.20"]
[Round "4"]
[White "MagnusCarlsen"]
[Black "TenisMaster"]
[Result "0-1"]
[WhiteElo "3340"]
[BlackElo "2958"]
[TimeControl "180+1"]
[EndTime "14:38:55 PST"]
[Termination "TenisMaster won on time"]

1. a3 {[%clk 0:02:58.4]} 1... d5 {[%clk 0:02:59.8]} 2. h4 {[%clk 0:02:58.7]}
2... Bf5 {[%clk 0:02:59]} 3. e3 {[%clk 0:02:56.7]} 3... e6 {[%clk 0:02:59]} 4.
g4 {[%clk 0:02:49.3]} 4... Be4 {[%clk 0:02:58.7]} 5. f3 {[%clk 0:02:49.1]} 5...
Be7 {[%clk 0:02:57.1]} 6. fxe4 {[%clk 0:02:48.4]} 6... Bxh4+ {[%clk 0:02:57]} 7.
Ke2 {[%clk 0:02:35.8]} 7... dxe4 {[%clk 0:02:57.1]} 8. Nc3 {[%clk 0:02:26.9]}
8... f5 {[%clk 0:02:55.4]} 9. d3 {[%clk 0:02:18]} 9... Qg5 {[%clk 0:02:48.5]}
10. dxe4 {[%clk 0:02:14.2]} 10... fxg4 {[%clk 0:02:42.2]} 11. e5 {[%clk
0:02:09]} 11... Nc6 {[%clk 0:02:23.8]} 12. Bg2 {[%clk 0:02:07.2]} 12... Nge7
{[%clk 0:02:09.1]} 13. Ne4 {[%clk 0:01:53.1]} 13... Qh5 {[%clk 0:02:04.1]} 14.
Nf3 {[%clk 0:01:07.5]} 14... gxf3+ {[%clk 0:01:36.4]} 15. Bxf3 {[%clk
0:01:08.3]} 15... Qh6 {[%clk 0:01:36.5]} 16. Nf6+ {[%clk 0:01:07.6]} 16... gxf6
{[%clk 0:01:27.4]} 17. e4 {[%clk 0:01:07.4]} 17... Qg7 {[%clk 0:01:23.8]} 18.
Rxh4 {[%clk 0:01:07.5]} 18... Nxe5 {[%clk 0:01:19.5]} 19. Bh5+ {[%clk
0:01:06.9]} 19... N7g6 {[%clk 0:01:18.9]} 20. Rh3 {[%clk 0:01:01]} 20... Rd8
{[%clk 0:01:14]} 21. Qg1 {[%clk 0:00:56.9]} 21... Rg8 {[%clk 0:00:54.7]} 22.
Qxa7 {[%clk 0:00:45.7]} 22... Qd7 {[%clk 0:00:54.8]} 23. Be3 {[%clk 0:00:39.9]}
23... Qc6 {[%clk 0:00:54.9]} 24. Qc5 {[%clk 0:00:28.3]} 24... Qxe4 {[%clk
0:00:52.7]} 25. Rg1 {[%clk 0:00:25.8]} 25... Kd7 {[%clk 0:00:41]} 26. Kf2 {[%clk
0:00:17.3]} 26... Kc8 {[%clk 0:00:37.1]} 27. Rhg3 {[%clk 0:00:11.6]} 27... Nf4
{[%clk 0:00:23.6]} 28. Rxg8 {[%clk 0:00:08.3]} 28... Nfd3+ {[%clk 0:00:23.7]}
29. cxd3 {[%clk 0:00:08]} 29... Nxd3+ {[%clk 0:00:23.8]} 30. Ke2 {[%clk
0:00:03.6]} 30... Nxc5 {[%clk 0:00:20.6]} 31. Bf3 {[%clk 0:00:03.9]} 31... Qc2+
{[%clk 0:00:12.6]} 32. Kf1 {[%clk 0:00:04.3]} 32... Nd3 {[%clk 0:00:11]} 33.
Rxd8+ {[%clk 0:00:02.9]} 33... Kxd8 {[%clk 0:00:11.5]} 34. Rg8+ {[%clk
0:00:03.8]} 34... Kd7 {[%clk 0:00:12]} 35. Rg7+ {[%clk 0:00:04.7]} 35... Kd6
{[%clk 0:00:12.5]} 36. Rg2 {[%clk 0:00:04.2]} 36... Qb1+ {[%clk 0:00:11.7]} 37.
Ke2 {[%clk 0:00:04.6]} 37... Ne5 {[%clk 0:00:08.7]} 0-1

[Event "Late-Titled-Tuesday-Blitz-February-20-2024"]
[Site "Chess.com"]
[Date "2024.02.20"]
[Round "4"]
[White "ridnani1"]
[Black "mirciulica14"]
[Result "0-1"]
[WhiteElo "2383"]
[BlackElo "2643"]
[TimeControl "180+1"]
[EndTime "14:38:57 PST"]
[Termination "mirciulica14 won by resignation"]

1. e4 {[%clk 0:03:00.9]} 1... g6 {[%clk 0:02:55.5]} 2. d4 {[%clk 0:02:59.8]}
2... c6 {[%clk 0:02:55.1]} 3. Nf3 {[%clk 0:02:59.2]} 3... d5 {[%clk 0:02:54.8]}
4. exd5 {[%clk 0:02:58.1]} 4... cxd5 {[%clk 0:02:54.4]} 5. Bd3 {[%clk
0:02:56.1]} 5... Nc6 {[%clk 0:02:53.7]} 6. c3 {[%clk 0:02:55.7]} 6... Nf6 {[%clk
0:02:42.2]} 7. Bf4 {[%clk 0:02:53.7]} 7... Bg7 {[%clk 0:02:38.3]} 8. Nbd2 {[%clk
0:02:52.6]} 8... O-O {[%clk 0:02:33.3]} 9. O-O {[%clk 0:02:50.5]} 9... Nh5
{[%clk 0:02:10]} 10. Bg3 {[%clk 0:02:33.5]} 10... Nxg3 {[%clk 0:02:04.2]} 11.
hxg3 {[%clk 0:02:34.4]} 11... Rb8 {[%clk 0:01:53.7]} 12. Re1 {[%clk 0:02:30.5]}
12... b5 {[%clk 0:01:49.7]} 13. a3 {[%clk 0:02:21.4]} 13... a5 {[%clk
0:01:49.3]} 14. Qe2 {[%clk 0:02:11.6]} 14... Qb6 {[%clk 0:01:07.2]} 15. b4
{[%clk 0:02:10.2]} 15... a4 {[%clk 0:00:54.6]} 16. Nf1 {[%clk 0:01:41]} 16... e6
{[%clk 0:00:42.4]} 17. N1h2 {[%clk 0:01:29.9]} 17... Bd7 {[%clk 0:00:39.6]} 18.
Ng4 {[%clk 0:01:27.2]} 18... Rfc8 {[%clk 0:00:37.9]} 19. Rac1 {[%clk 0:01:26.1]}
19... Rc7 {[%clk 0:00:32.6]} 20. Rc2 {[%clk 0:01:12.6]} 20... Be8 {[%clk
0:00:27.6]} 21. Rec1 {[%clk 0:01:08.9]} 21... Ne7 {[%clk 0:00:23]} 22. Qd2
{[%clk 0:00:59.5]} 22... h5 {[%clk 0:00:19.7]} 23. Nge5 {[%clk 0:00:58]} 23...
Rbc8 {[%clk 0:00:19.6]} 24. g4 {[%clk 0:00:52.7]} 24... hxg4 {[%clk 0:00:18]}
25. Nxg4 {[%clk 0:00:53.6]} 25... Nc6 {[%clk 0:00:18.1]} 26. Qe2 {[%clk
0:00:49.5]} 26... Ne7 {[%clk 0:00:17.9]} 27. Nge5 {[%clk 0:00:46.3]} 27... Qb8
{[%clk 0:00:15.9]} 28. g4 {[%clk 0:00:43.9]} 28... Nc6 {[%clk 0:00:14.9]} 29.
Nxc6 {[%clk 0:00:41.1]} 29... Bxc6 {[%clk 0:00:14.6]} 30. Ne5 {[%clk 0:00:41.7]}
30... Be8 {[%clk 0:00:15.1]} 31. f4 {[%clk 0:00:39.2]} 31... Rb7 {[%clk
0:00:15]} 32. f5 {[%clk 0:00:37.6]} 32... exf5 {[%clk 0:00:14.5]} 33. gxf5
{[%clk 0:00:38.5]} 33... Re7 {[%clk 0:00:14.5]} 34. Re1 {[%clk 0:00:37.3]} 34...
f6 {[%clk 0:00:11.5]} 35. Qf3 {[%clk 0:00:30.1]} 35... fxe5 {[%clk 0:00:10.5]}
36. f6 {[%clk 0:00:29]} 36... e4 {[%clk 0:00:09.8]} 37. fxg7 {[%clk 0:00:18.2]}
37... exf3 {[%clk 0:00:09]} 38. Rxe7 {[%clk 0:00:18.7]} 38... Rc7 {[%clk
0:00:08.9]} 39. Rxc7 {[%clk 0:00:17.1]} 39... Qxc7 {[%clk 0:00:09.8]} 40. Kf2
{[%clk 0:00:17.5]} 40... Kxg7 {[%clk 0:00:10.1]} 41. Kxf3 {[%clk 0:00:17.7]}
41... Bd7 {[%clk 0:00:10.6]} 42. Ke3 {[%clk 0:00:14.9]} 42... Bf5 {[%clk
0:00:10.3]} 43. Bxf5 {[%clk 0:00:14.8]} 43... gxf5 {[%clk 0:00:11.2]} 44. Rg2+
{[%clk 0:00:15.2]} 44... Kf6 {[%clk 0:00:11.9]} 45. Kd3 {[%clk 0:00:15.7]} 45...
Qf4 {[%clk 0:00:11.9]} 46. Re2 {[%clk 0:00:16]} 46... Qc1 {[%clk 0:00:12.2]} 47.
Rc2 {[%clk 0:00:16]} 47... Qxa3 {[%clk 0:00:12]} 48. Re2 {[%clk 0:00:16.6]}
48... Qb3 {[%clk 0:00:12]} 49. Rh2 {[%clk 0:00:15.2]} 49... a3 {[%clk
0:00:12.3]} 50. Rh6+ {[%clk 0:00:15.5]} 50... Kg5 {[%clk 0:00:12.3]} 51. Rh1
{[%clk 0:00:16.4]} 0-1

[Event "Late-Titled-Tuesday-Blitz-February-20-2024"]
[Site "Chess.com"]
[Date "2024.02.20"]
[Round "4"]
[White "BabageldiAnnaberdiyev"]
[Black "SharathRk6"]
[Result "1-0"]
[WhiteElo "2626"]
[BlackElo "2398"]
[TimeControl "180+1"]
[EndTime "14:38:58 PST"]
[Termination "BabageldiAnnaberdiyev won by resignation"]

1. e4 {[%clk 0:02:56.5]} 1... e5 {[%clk 0:02:59.6]} 2. Nf3 {[%clk 0:02:56.1]}
2... Nc6 {[%clk 0:02:58.9]} 3. Bc4 {[%clk 0:02:56.4]} 3... Bc5 {[%clk
0:02:58.7]} 4. c3 {[%clk 0:02:56.3]} 4... Nf6 {[%clk 0:02:58.6]} 5. d4 {[%clk
0:02:57]} 5... exd4 {[%clk 0:02:58.8]} 6. cxd4 {[%clk 0:02:57.9]} 6... Bb4+
{[%clk 0:02:58.6]} 7. Nc3 {[%clk 0:02:58.5]} 7... Nxe4 {[%clk 0:02:58.1]} 8. O-O
{[%clk 0:02:59]} 8... Bxc3 {[%clk 0:02:57.2]} 9. d5 {[%clk 0:02:59.6]} 9... Bf6
{[%clk 0:02:57.4]} 10. Re1 {[%clk 0:02:59.5]} 10... Ne7 {[%clk 0:02:53]} 11.
Rxe4 {[%clk 0:03:00]} 11... d6 {[%clk 0:02:53.3]} 12. Bg5 {[%clk 0:03:00]} 12...
Bxg5 {[%clk 0:02:48.6]} 13. Nxg5 {[%clk 0:03:00.9]} 13... O-O {[%clk 0:02:48.1]}
14. Nxh7 {[%clk 0:03:00.3]} 14... Bf5 {[%clk 0:01:49.8]} 15. Rxe7 {[%clk
0:02:58.4]} 15... Qxe7 {[%clk 0:01:47]} 16. Nxf8 {[%clk 0:02:59]} 16... Rxf8
{[%clk 0:01:46.2]} 17. Rc1 {[%clk 0:02:57.1]} 17... Re8 {[%clk 0:01:33.4]} 18.
Bf1 {[%clk 0:02:55.9]} 18... Be4 {[%clk 0:01:25.3]} 19. Qb3 {[%clk 0:02:54.6]}
19... Qg5 {[%clk 0:01:07]} 20. Re1 {[%clk 0:02:39.9]} 20... Re5 {[%clk
0:00:54.5]} 21. Qxb7 {[%clk 0:02:13.9]} 21... Bxd5 {[%clk 0:00:47.9]} 22. Rxe5
{[%clk 0:02:11.7]} 22... Qxe5 {[%clk 0:00:43.6]} 23. Qxc7 {[%clk 0:02:09.9]}
23... Be6 {[%clk 0:00:22.8]} 24. b3 {[%clk 0:02:01.4]} 24... a5 {[%clk
0:00:20.6]} 25. h3 {[%clk 0:01:51.8]} 25... Qc5 {[%clk 0:00:19.6]} 26. Qd8+
{[%clk 0:01:50.4]} 26... Kh7 {[%clk 0:00:19.5]} 27. Qe7 {[%clk 0:01:49.9]} 27...
a4 {[%clk 0:00:17.2]} 28. Qh4+ {[%clk 0:01:24.3]} 28... Kg8 {[%clk 0:00:17.2]}
29. Qxa4 {[%clk 0:01:25]} 29... d5 {[%clk 0:00:16.6]} 30. Qe8+ {[%clk
0:01:10.2]} 30... Kh7 {[%clk 0:00:16.4]} 31. Qd8 {[%clk 0:01:06.5]} 31... d4
{[%clk 0:00:15.1]} 32. h4 {[%clk 0:01:00.1]} 32... Bf5 {[%clk 0:00:14.2]} 33.
Qg5 {[%clk 0:00:57.2]} 33... Qd5 {[%clk 0:00:06]} 34. g4 {[%clk 0:00:27.2]}
34... Be4 {[%clk 0:00:04.7]} 35. Qxd5 {[%clk 0:00:24.4]} 35... Bxd5 {[%clk
0:00:05.6]} 36. Bd3+ {[%clk 0:00:24]} 36... Kh6 {[%clk 0:00:04.9]} 37. Kh2
{[%clk 0:00:23.8]} 37... g5 {[%clk 0:00:05.1]} 38. Kg3 {[%clk 0:00:21.5]} 38...
gxh4+ {[%clk 0:00:04.5]} 39. Kxh4 {[%clk 0:00:22.4]} 39... Kg7 {[%clk
0:00:04.9]} 40. f4 {[%clk 0:00:22.4]} 40... f6 {[%clk 0:00:04.9]} 41. g5 {[%clk
0:00:21.6]} 41... fxg5+ {[%clk 0:00:04.8]} 42. Kxg5 {[%clk 0:00:22.5]} 42... Kf7
{[%clk 0:00:04.9]} 43. f5 {[%clk 0:00:22.8]} 43... Ke7 {[%clk 0:00:05.3]} 44.
Kf4 {[%clk 0:00:22.2]} 44... Kf6 {[%clk 0:00:05.5]} 45. Bc2 {[%clk 0:00:20.5]}
45... Bc6 {[%clk 0:00:05.3]} 46. a4 {[%clk 0:00:20.2]} 46... Bd5 {[%clk
0:00:05.5]} 47. a5 {[%clk 0:00:19.6]} 47... Bc6 {[%clk 0:00:05.5]} 48. Bd3
{[%clk 0:00:20.2]} 48... Bd5 {[%clk 0:00:04.6]} 49. b4 {[%clk 0:00:20.7]} 49...
Bc6 {[%clk 0:00:05.1]} 50. b5 {[%clk 0:00:21.2]} 50... Bb7 {[%clk 0:00:06]} 51.
b6 {[%clk 0:00:20.2]} 51... Ba8 {[%clk 0:00:06.9]} 1-0

[Event "Late-Titled-Tuesday-Blitz-February-20-2024"]
[Site "Chess.com"]
[Date "2024.02.20"]
[Round "4"]
[White "viniciusrego"]
[Black "NtcPou"]
[Result "1-0"]
[WhiteElo "2411"]
[BlackElo "2018"]
[TimeControl "180+1"]
[EndTime "14:38:58 PST"]
[Termination "viniciusrego won by resignation"]

1. Nf3 {[%clk 0:02:57]} 1... d5 {[%clk 0:02:59.3]} 2. g3 {[%clk 0:02:54.7]} 2...
Nf6 {[%clk 0:02:58.6]} 3. c4 {[%clk 0:02:52.9]} 3... c6 {[%clk 0:02:58.4]} 4.
Bg2 {[%clk 0:02:52.9]} 4... a6 {[%clk 0:02:56]} 5. O-O {[%clk 0:02:51]} 5... h6
{[%clk 0:02:54.4]} 6. b3 {[%clk 0:02:44.3]} 6... b5 {[%clk 0:02:53.7]} 7. Bb2
{[%clk 0:02:36.5]} 7... Bf5 {[%clk 0:02:45.5]} 8. cxd5 {[%clk 0:02:20.8]} 8...
cxd5 {[%clk 0:02:44.1]} 9. a4 {[%clk 0:02:15.8]} 9... b4 {[%clk 0:02:42.2]} 10.
d3 {[%clk 0:02:08.9]} 10... e6 {[%clk 0:02:29]} 11. Nbd2 {[%clk 0:02:07.3]}
11... Nbd7 {[%clk 0:02:13.8]} 12. Nd4 {[%clk 0:02:02.3]} 12... Bg6 {[%clk
0:02:04.2]} 13. N2f3 {[%clk 0:02:01.9]} 13... Bc5 {[%clk 0:01:17.9]} 14. Nc6
{[%clk 0:01:54.5]} 14... Qb6 {[%clk 0:01:14.7]} 15. Nce5 {[%clk 0:01:51.9]}
15... Nxe5 {[%clk 0:01:06.9]} 16. Nxe5 {[%clk 0:01:52.8]} 16... Bh7 {[%clk
0:01:06.6]} 17. a5 {[%clk 0:01:33.8]} 17... Qb5 {[%clk 0:00:57.1]} 18. Nf3
{[%clk 0:01:05]} 18... Be7 {[%clk 0:00:50]} 19. Nd4 {[%clk 0:01:00.9]} 19... Qd7
{[%clk 0:00:36.7]} 20. e4 {[%clk 0:00:56.5]} 20... dxe4 {[%clk 0:00:32]} 21.
dxe4 {[%clk 0:00:56.3]} 21... O-O {[%clk 0:00:32.3]} 22. e5 {[%clk 0:00:55.6]}
22... Nd5 {[%clk 0:00:31.9]} 23. Qg4 {[%clk 0:00:46.2]} 23... Rac8 {[%clk
0:00:26.9]} 24. Rad1 {[%clk 0:00:45.5]} 24... Qa7 {[%clk 0:00:16.6]} 25. Nxe6
{[%clk 0:00:39.8]} 25... fxe6 {[%clk 0:00:14.3]} 26. Qxe6+ {[%clk 0:00:39.7]}
26... Kh8 {[%clk 0:00:14.5]} 27. Bxd5 {[%clk 0:00:31]} 27... Rc2 {[%clk
0:00:11.9]} 28. Bd4 {[%clk 0:00:25.1]} 28... Bc5 {[%clk 0:00:12.3]} 29. Bxc5
{[%clk 0:00:18.2]} 29... Qxc5 {[%clk 0:00:13]} 30. Qd6 {[%clk 0:00:19.1]} 30...
Rfxf2 {[%clk 0:00:07.7]} 31. Qxc5 {[%clk 0:00:19.5]} 31... Rxf1+ {[%clk
0:00:06.9]} 32. Rxf1 {[%clk 0:00:20.4]} 32... Rxc5 {[%clk 0:00:07.1]} 33. Rf8+
{[%clk 0:00:20.3]} 33... Bg8 {[%clk 0:00:07.4]} 34. Bxg8 {[%clk 0:00:20.9]}
34... Rxe5 {[%clk 0:00:03.7]} 35. Bc4+ {[%clk 0:00:21.5]} 35... Kh7 {[%clk
0:00:04.1]} 36. Bd3+ {[%clk 0:00:17.8]} 36... g6 {[%clk 0:00:04]} 37. Rb8 {[%clk
0:00:15.9]} 37... Re3 {[%clk 0:00:03.5]} 38. Bc4 {[%clk 0:00:16]} 38... Kg7
{[%clk 0:00:03.8]} 39. Rb6 {[%clk 0:00:16]} 39... Rc3 {[%clk 0:00:03.3]} 40.
Rxa6 {[%clk 0:00:16.4]} 40... Rc1+ {[%clk 0:00:03.9]} 41. Kg2 {[%clk 0:00:16.3]}
41... Rc2+ {[%clk 0:00:04.8]} 42. Kh3 {[%clk 0:00:16.9]} 42... g5 {[%clk
0:00:04.5]} 43. Rg6+ {[%clk 0:00:16.1]} 43... Kh7 {[%clk 0:00:03.1]} 44. Re6
{[%clk 0:00:12.6]} 44... h5 {[%clk 0:00:03.3]} 45. Bd3+ {[%clk 0:00:13]} 1-0